Cogmind - Beta 16 @@@ ROGUE MODE // 2026.01.16 @ 10:47:33 Player: noklam Result: Destroyed by S-27 Virus with Autogun Performance ------------- Evolutions (3) 1500 Regions Visited (6) 1200 Robots Destroyed (7) 35 Value Destroyed (221) 221 Prototype IDs (24) 480 Alien Tech Used (0) 0 Bonus (360) 360 TOTAL SCORE: 3796 Bonus ------- Follower Combat Kills 60 Aligned with FarCom 300 Cogmind --------- Core Integrity 0/700 Matter 205/300 Energy 100/100 System Corruption 0% Temperature Cool (0) Movement Core (50) Location -7/Factory Parts ------- > --- POWER (2) -------- (None) > --- PROPULSION (3) --- (None) > --- UTILITY (5) ------ 0b10 Alert Chip > --- WEAPON (3) ------- (None) > --- INVENTORY (5) ---- Hacking Suite Heavy Particle Cannon Heavy Particle Cannon High-powered Shotgun Improved Grenade Launcher Peak State ------------ > --- POWER ------------ Light Ion Engine Light Ion Engine > --- PROPULSION ------- Gravmag System Gravmag System Gravmag System > --- UTILITY ---------- Heat Sink Small Storage Unit 0b10 Alert Chip Reaction Control System > --- WEAPON ----------- Heavy Particle Cannon Heavy Particle Cannon > --- INVENTORY -------- Light Ion Engine Light Nuclear Core Gravmag System Heavy Particle Cannon Heavy Particle Cannon Heavy Particle Cannon Improved Grenade Launcher [Rating: 33] Favorites ----------- Power Light Ion Engine Engine Light Ion Engine Power Core Light Nuclear Core Propulsion Flight Unit Leg Aluminum Leg Hover Unit Gravmag System Flight Unit Flight Unit Utility 0b10 Alert Chip Device Heat Sink Storage Medium Storage Unit Processor 0b10 Alert Chip Weapon Heavy Particle Cannon Energy Gun Small Laser Energy Cannon Heavy Particle Cannon Ballistic Gun Assault Rifle Special Weapon Field Lobotomy Kit Build | -11 -10 -10 -10 -9 -8 -7 ------- Run | Yrd Mat Min Exi Min Mat Fac Slots Evolved 6 | . . . . . 4 2 Power 1 | . . . . . 1 . Propulsion 1 | . . . . . 1 . Utility 3 | . . . . . 2 1 Weapon 1 | . . . . . . 1 Parts Attached 37 | 6 4 3 3 . 20 1 Power 4 | 1 . . . . 3 . Engine 3 | 1 . . . . 2 . Core 1 | . . . . . 1 . Reactor . | . . . . . . . Propulsion 11 | 2 2 . . . 6 1 Treads . | . . . . . . . Leg 4 | 2 . . . . 2 . Wheel . | . . . . . . . Hover 5 | . . . . . 4 1 Flight 2 | . 2 . . . . . Utility 12 | 1 2 2 2 . 5 . Device 5 | . . 2 . . 3 . Storage 6 | 1 2 . 1 . 2 . Processor 1 | . . . 1 . . . Hackware . | . . . . . . . Protection . | . . . . . . . Artifact . | . . . . . . . Weapon 10 | 2 . 1 1 . 6 . Energy Gun 2 | 1 . 1 . . . . Energy Cannon 6 | . . . . . 6 . Ballistic Gun 1 | 1 . . . . . . Ballistic Cannon . | . . . . . . . Launcher . | . . . . . . . Special Weapon 1 | . . . 1 . . . Impact Weapon . | . . . . . . . Slashing Weapon . | . . . . . . . Piercing Weapon . | . . . . . . . Special Melee Weapon . | . . . . . . . Unidentified Prototypes 1 | . . . . . . 1 Parts Lost 19 | . . . . . 12 7 Power 4 | . . . . . 4 . Propulsion 7 | . . . . . 4 3 Utility 4 | . . . . . 2 2 Weapon 4 | . . . . . 2 2 Highest Loss Streak 7 | . . . . . 7 4 To Critical Strikes . | . . . . . . . Average Backups 4 | . 1 2 4 4 6 3 Power 1 | . 1 1 3 3 1 . Propulsion . | . . . . . . . Utility . | . . 1 1 1 . 1 Weapon 1 | . . . . . 3 2 Tool/Special . | . . . . . . . Unused Backups 5 | . . . . 1 1 3 Power . | . . . . . . . Propulsion . | . . . . . . . Utility 3 | . . . . 1 1 1 Weapon 2 | . . . . . . 2 Tool/Special . | . . . . . . . Average Slot Usage (%) 73 | . 83 73 98 100 75 52 Engine 9 | . 14 14 14 14 11 . Leg 4 | . 19 . . . 2 7 Hover 5 | . . . . . 16 4 Flight 11 | . 8 28 28 28 . . Device 8 | . . 2 24 14 11 5 Storage 5 | . 13 . . . 7 7 Processor 5 | . . . 2 14 9 7 Energy Gun 11 | . 14 22 27 28 4 . Energy Cannon 7 | . . . . . 9 18 Ballistic Gun 2 | . 14 5 . . . . Peak Build Rating 33 | 6 7 7 16 12 33 27 Average Rating 15 | 4 5 5 8 12 24 22 On Entrance 8 | . 6 5 7 12 12 20 Avg Prop Armor Cover (%) 5 | . . . . . . 5 Naked Turns . | . . . . . . . Heaviest Build 40 | 11 31 8 8 7 40 32 Greatest Support 27 | 20 20 8 8 8 27 20 Greatest Overweight (x) 10 | . 6 . . . 8 10 Average Overweight (x) . | . . . . . . 2 Largest Inventory Capacity 35 | 8 15 5 35 5 15 10 Average Capacity 7 | 6 10 5 5 5 8 9 Most Carried 10 | 1 4 4 5 5 10 5 Average Carried 4 | . 1 2 4 4 6 3 Final Capacity 10 | 8 5 5 5 5 10 5 Final Carried 5 | 1 2 4 4 4 4 5 Class Distribution -------------------- 67% | Mutant 20% | Skirmisher 11% | Scavenger-Mutant Dominant Class ---------------- Mutant | -10/Materials Mutant | -10/Mines Scavenger-Mutant | -10/Exiles Mutant | -9/Mines Mutant | -8/Materials Skirmisher | -7/Factory Resources | -11 -10 -10 -10 -9 -8 -7 ----------- Run | Yrd Mat Min Exi Min Mat Fac Matter Collected 562 | 194 15 127 . 80 146 . Remotely . | . . . . . . . Salvage Created 248 | . 15 27 . . 206 . Parts 9 | . 3 2 . . 4 . Haulers Intercepted . | . . . . . . . Recyclers Shooed . | . . . . . . . Parts Field Recycled . | . . . . . . . Retrieved Matter . | . . . . . . . Parts Self-Destructed . | . . . . . . . Prevented . | . . . . . . . Parts Restored . | . . . . . . . Kills | -11 -10 -10 -10 -9 -8 -7 ------- Run | Yrd Mat Min Exi Min Mat Fac Combat Hostiles Destroyed 7 | . 1 2 . . 4 . Guns 3 | . 1 2 . . . . Cannons 3 | . . . . . 3 . Classes Destroyed 2 | . 1 . . . 1 . Swarmer 3 | . 1 2 . . . . Grunt 4 | . . . . . 4 . Best Kill Streak 3 | . 1 2 . . 3 . Combat Bots Only 3 | . 1 2 . . 3 . Max Kills in Single Turn 1 | . 1 1 . . 1 . Gunslinging . | . . . . . . . Exploded . | . . . . . . . Melee . | . . . . . . . Uniques/NPCs Destroyed . | . . . . . . . Combat | -11 -10 -10 -10 -9 -8 -7 -------- Run | Yrd Mat Min Exi Min Mat Fac Hostile Shots Fired 270 | . 16 7 . . 121 126 Missed 86 | . 10 4 . . 38 34 Hits 184 | . 6 3 . . 83 92 Projectile 184 | . 6 3 . . 83 92 Critical Strikes 5 | . . . . . 2 3 Damage Taken 2773 | . 47 29 . . 1284 1413 Core 1020 | . 19 7 . . 288 706 Absorbed by Shields 65 | . . . . . 8 57 Core Remaining (%) 78 | 100 . . . 89 47 . Volleys Fired 18 | . 2 2 . . 14 . Largest 2 | . 2 2 . . 2 . Hottest 150 | . 60 90 . . 150 . Shots Fired 35 | . 4 4 . . 27 . Gun 8 | . 4 4 . . . . Cannon 27 | . . . . . 27 . Launcher . | . . . . . . . Special . | . . . . . . . Kinetic 2 | . 2 . . . . . Thermal 33 | . 2 4 . . 27 . Explosive . | . . . . . . . Electromagnetic . | . . . . . . . Robot Hit Streak 11 | . 1 3 . . 11 . Robot Miss Streak 1 | . 1 1 . . 1 . Penetration Max . | . . . . . . . Secondary Targets . | . . . . . . . Shots Hit Robots 28 | . 2 3 . . 23 . Core Hits 11 | . 1 2 . . 8 . Critical Kills . | . . . . . . . Critical Parts Destroyed . | . . . . . . . Critical Strikes . | . . . . . . . Melee Attacks . | . . . . . . . Impact . | . . . . . . . Slashing . | . . . . . . . Piercing . | . . . . . . . Sneak Attacks . | . . . . . . . Combat Hostiles . | . . . . . . . Follow-up Attacks . | . . . . . . . Damage Inflicted 646 | . 24 34 . . 588 . Guns 58 | . 24 34 . . . . Cannons 575 | . . . . . 575 . Explosions . | . . . . . . . Melee . | . . . . . . . Ramming 13 | . . . . . 13 . Kinetic . | . . . . . . . Thermal 633 | . 24 34 . . 575 . Explosive . | . . . . . . . Electromagnetic . | . . . . . . . Impact . | . . . . . . . Slashing . | . . . . . . . Piercing . | . . . . . . . Highest Corruption 1 | . . . . . 1 . Average Corruption 1 | . . . . . 1 . Corruption Purged . | . . . . . . . Corruption Blocked . | . . . . . . . Effects 2 | . . . . . 2 . Message Errors 1 | . . . . . 1 . Matter Fused 1 | . . . . . 1 . Overload Shots . | . . . . . . . Overflow Damage . | . . . . . . . Projectiles . | . . . . . . . Explosions . | . . . . . . . Melee . | . . . . . . . Knockbacks . | . . . . . . . Impact . | . . . . . . . Kinetic . | . . . . . . . Secondary . | . . . . . . . Self-Inflicted Damage 6 | . . . . . 6 . Shots . | . . . . . . . Rammed 2 | . . . . . 2 . Targets Rammed 2 | . . . . . 2 . Kicked . | . . . . . . . Crushed . | . . . . . . . Highest Temperature 573 | . . 72 . . 573 2 Average Temperature 201 | . . 37 . . 227 2 Received Heat Transfer 1302 | . . 12 . . 732 558 Effects 10 | . . . . . 10 . Shutdowns 4 | . . . . . 4 . Energy Bleed 1 | . . . . . 1 . Matter Decay 2 | . . . . . 2 . Damage (minor) 2 | . . . . . 2 . Damage (major) 1 | . . . . . 1 . Siege Activations . | . . . . . . . Martial Activations . | . . . . . . . Shielding Activations . | . . . . . . . Robots Disrupted . | . . . . . . . Combat Hostiles . | . . . . . . . Robots Corrupted . | . . . . . . . Combat Hostiles . | . . . . . . . Parts Fried . | . . . . . . . Impact Corruptions . | . . . . . . . Robots Melted 1 | . . . . . 1 . Combat Hostiles 1 | . . . . . 1 . Parts Melted 1 | . . . . . 1 . Heat Transferred 988 | . 50 87 . . 851 . Parts Sabotaged . | . . . . . . . Parts Stolen . | . . . . . . . Parts Stripped . | . . . . . . . Power Chain Reactions . | . . . . . . . Alert | -11 -10 -10 -10 -9 -8 -7 ------- Run | Yrd Mat Min Exi Min Mat Fac Maximum Alert Level . | . . . . . . . Low Security (%) 100 | 100 100 100 . 100 100 100 Level 1 . | . . . . . . . Level 2 . | . . . . . . . Level 3 . | . . . . . . . Level 4 . | . . . . . . . Level 5 . | . . . . . . . High Security . | . . . . . . . Max Security . | . . . . . . . Peak Influence 60 | . 60 50 . 4 24 1 Initial 11 | . . 11 . . . 1 Average 7 | . 20 19 . 1 3 . Influence Increases 318 | . 60 134 . 4 120 . Destroy 0b10 Robot/C 164 | . 20 80 . . 64 . Destroy Leader 46 | . 10 20 . . 16 . Allied During Kill 4 | . . 4 . . . . Successful Hack 4 | . . . . 4 . . Destroy Structure 4 | . . . . . 4 . Lose Combat Pursuer 96 | . 30 30 . . 36 . Influence Decreases 318 | . 30 150 14 4 116 4 Entered New Map 36 | . . 19 14 . . 3 Time Decay 182 | . 30 91 . 4 56 1 Lost Part 60 | . . . . . 60 . Lost Ally 40 | . . 40 . . . . Squads Dispatched 3 | . 1 . . . 2 . Investigation . | . . . . . . . Extermination . | . . . . . . . Reinforcement 3 | . 1 . . . 2 . Assault . | . . . . . . . Garrison . | . . . . . . . Intercept . | . . . . . . . Searches Triggered . | . . . . . . . Construction Impeded . | . . . . . . . Haulers Reinforced . | . . . . . . . Active Scanning Responses . | . . . . . . . Cargo Convoy Interrupts . | . . . . . . . Stealth | -11 -10 -10 -10 -9 -8 -7 --------- Run | Yrd Mat Min Exi Min Mat Fac Distress Signals 4 | . 1 . . . 2 1 Communications Jammed . | . . . . . . . Distress Signals . | . . . . . . . Times Spotted 38 | . 8 7 . . 15 8 Peak Tracking Total 12 | . 5 2 . . 12 7 Tactical Retreats 4 | . 1 1 . . 2 . Traps | -11 -10 -10 -10 -9 -8 -7 ------- Run | Yrd Mat Min Exi Min Mat Fac Traps Triggered 2 | . . . . . 1 1 Indirectly . | . . . . . . . Trap Hack Attempts . | . . . . . . . Triggered . | . . . . . . . Disarmed . | . . . . . . . Reprogrammed . | . . . . . . . Reused . | . . . . . . . Traps Extracted . | . . . . . . . Installed . | . . . . . . . Triggered . | . . . . . . . Machines | -11 -10 -10 -10 -9 -8 -7 ---------- Run | Yrd Mat Min Exi Min Mat Fac Machines Disabled . | . . . . . . . Max in Single Turn . | . . . . . . . Machines Repaired . | . . . . . . . Machines Dismantled . | . . . . . . . Machines Sabotaged . | . . . . . . . Overloaded Fab Kills . | . . . . . . . Hacking | -11 -10 -10 -10 -9 -8 -7 --------- Run | Yrd Mat Min Exi Min Mat Fac Machines Accessed 4 | . . . 1 1 2 . Terminals 3 | . . . . 1 2 . Fabricators . | . . . . . . . Repair Stations . | . . . . . . . Recycling Units . | . . . . . . . Scanalyzers . | . . . . . . . Garrison Access . | . . . . . . . Total Hacks 8 | . . . 1 3 4 . Successful 5 | . . . 1 2 2 . Failed 3 | . . . . 1 2 . Catastrophic . | . . . . . . . Database Lockouts . | . . . . . . . Manual 1 | . . . 1 . . . Terminals 7 | . . . . 3 4 . Fabricators . | . . . . . . . Repair Stations . | . . . . . . . Recycling Units . | . . . . . . . Scanalyzers . | . . . . . . . Garrison Access . | . . . . . . . Terminal Hacks 5 | . . . 1 2 2 . Record 1 | . . . . 1 . . Terminal Index 1 | . . . . . 1 . Zone Layout 2 | . . . . 1 1 . Proto ID Catalog 1 | . . . 1 . . . Fabricator Hacks . | . . . . . . . Repair Station Hacks . | . . . . . . . Recycling Unit Hacks . | . . . . . . . Scanalyzer . | . . . . . . . Garrison Access Hacks . | . . . . . . . Unauthorized Hacks . | . . . . . . . Terminals . | . . . . . . . Fabricators . | . . . . . . . Repair Stations . | . . . . . . . Recycling Units . | . . . . . . . Scanalyzers . | . . . . . . . Garrison Access . | . . . . . . . Data Cores Recovered . | . . . . . . . Used . | . . . . . . . Hacking Detections 3 | . . . . 1 2 . Full Trace Events 1 | . . . . 1 . . Feedback Events . | . . . . . . . Feedback Blocked . | . . . . . . . Robot Schematics Acquired . | . . . . . . . Robots Built . | . . . . . . . Authchips . | . . . . . . . Time . | . . . . . . . Total Robot Build Rating . | . . . . . . . Part Schematics Acquired . | . . . . . . . Parts Built . | . . . . . . . Authchips . | . . . . . . . Time . | . . . . . . . Total Part Build Rating . | . . . . . . . Part Studies Acquired . | . . . . . . . Parts Repaired . | . . . . . . . Time . | . . . . . . . Parts Recycled . | . . . . . . . Recycled Matter . | . . . . . . . Retrieved Matter . | . . . . . . . Retrieved Components . | . . . . . . . Parts Scanalyzed . | . . . . . . . Part Schematics Acquired . | . . . . . . . Parts Damaged . | . . . . . . . Bothacking | -11 -10 -10 -10 -9 -8 -7 ------------ Run | Yrd Mat Min Exi Min Mat Fac Used RIF Installer . | . . . . . . . Robots Hacked . | . . . . . . . Non-combat . | . . . . . . . Combat . | . . . . . . . Robot Hacks Applied . | . . . . . . . Relay Couplers Released . | . . . . . . . Fabnet Peak Effective % . | . . . . . . . Robots Rewired . | . . . . . . . Allies Hacked . | . . . . . . . Hacks Repelled . | . . . . . . . Allies | -11 -10 -10 -10 -9 -8 -7 -------- Run | Yrd Mat Min Exi Min Mat Fac Total Allies 3 | . . 3 . . . . Largest Group 3 | . . 3 . . . . Highest-Rated Group 40 | . . 40 . . . . Highest-Rated Ally 16 | . . 16 . . . . Total Orders . | . . . . . . . Ally Attacks 13 | . . 13 . . . . Total Damage 125 | . . 125 . . . . Kills 2 | . . 2 . . . . Allies Corrupted . | . . . . . . . Allies Melted . | . . . . . . . Intel | -11 -10 -10 -10 -9 -8 -7 ------- Run | Yrd Mat Min Exi Min Mat Fac Active Infowar (turns) . | . . . . . . . Robot Analysis Total . | . . . . . . . Derelict Logs Recovered 3 | . . 2 . 1 . . Drone Launches . | . . . . . . . Drone Recoveries . | . . . . . . . Exploration | -11 -10 -10 -10 -9 -8 -7 ------------- Run | Yrd Mat Min Exi Min Mat Fac Turns Passed 1425 | 59 131 262 184 39 367 383 Spaces Moved 1707 | 42 109 471 456 100 384 145 Core 15 | 1 . . . . 3 11 Treads . | . . . . . . . Legs 220 | 41 46 . . . 40 93 Wheels . | . . . . . . . Hover 367 | . . . . . 326 41 Flight 1105 | . 63 471 456 100 15 . Fastest Speed 37 | 50 37 37 37 37 37 50 Average Speed 66 | 118 93 37 37 37 70 232 Slowest Speed 550 | 120 520 37 37 37 450 550 Overloaded Moves . | . . . . . . . Propulsion Burnouts . | . . . . . . . Robots Hopped 7 | . 4 3 . . . . Potential Cave-ins . | . . . . . . . Cave-ins Triggered . | . . . . . . . Exploration Rate (%) 40 | 4 20 89 90 40 36 6 Regions Visited 6 Branch Regions 3 Pre-discovered Areas . | . . . . . . . Known Exits Taken . | . . . . . . . Unknown Exits Taken 6 | 1 1 1 1 1 1 . Scrap Searched 3 | . . 1 . 2 . . Spaces Dug . | . . . . . . . Terrain Destroyed 3 | . . . . . 3 . Melee . | . . . . . . . Projectile 3 | . . . . . 3 . AOE . | . . . . . . . Terrain Rammed . | . . . . . . . Walls Destroyed . | . . . . . . . Machines Disabled . | . . . . . . . Actions | -11 -10 -10 -10 -9 -8 -7 --------- Run | Yrd Mat Min Exi Min Mat Fac Total 1947 | 48 130 551 472 101 454 191 Wait 132 | . 11 71 . . 8 42 Move 1688 | 41 101 464 455 99 383 145 Hop 6 | . 3 3 . . . . Pick Up 19 | 1 . 4 2 1 10 1 Fast Attach 26 | 6 3 3 4 . 9 1 Attach 16 | . 1 . 3 . 11 1 Detach 16 | . 5 1 2 . 7 1 Swap 3 | . 1 . . . 2 . Drop 21 | . 3 3 6 1 8 . Fire 18 | . 2 2 . . 14 . Melee . | . . . . . . . Ram 2 | . . . . . 2 . Kick . | . . . . . . . Crush . | . . . . . . . Escape Stasis . | . . . . . . . Rewire . | . . . . . . . Trap . | . . . . . . . Miscellaneous . | . . . . . . . Route ------- -11/Scrapyard -10/Materials -10/Mines (discovered 3 exits: [*Mat x2] / *Exi) -10/Exiles (discovered 2 exits: *Min x2) -9/Mines (discovered 2 exits: *Mat x2) -8/Materials -7/Factory History --------- Turn | Location | Event 12 | -11/Scrapyard | Discovered new exit (range 16) 60 | -11/Scrapyard | Entered Materials 188 | -10/Materials | Discovered new exit (range 7) 191 | -10/Materials | Entered Mines 196 | -10/Mines | Met a Derelict bent on vengeance 223 | -10/Mines | Learned Materials terminal intel 234 | -10/Mines | Discovered new exit (range 15) 262 | -10/Mines | Found a hidden stash of uninstalled traps 271 | -10/Mines | Discovered new exit (range 13) 314 | -10/Mines | Build established: Mutant 364 | -10/Mines | Assisted by bots powering up and referring to "LRC-V3" 451 | -10/Mines | Deemed a non-threat by the Exiles lab entrance 451 | -10/Mines | Discovered new exit (range 5) 453 | -10/Mines | Entered Exiles 459 | -10/Exiles | Discovered new exit (range 15) 463 | -10/Exiles | Met 8R-AWN 470 | -10/Exiles | Met EX-HEX 498 | -10/Exiles | Met EX-DEC 505 | -10/Exiles | Visited The Gauntlet 572 | -10/Exiles | Met EX-BIN 577 | -10/Exiles | Aligned with FarCom system 578 | -10/Exiles | Given EX-Vault access code 587 | -10/Exiles | Opened EX-Vault 589 | -10/Exiles | Found Field Lobotomy Kit 597 | -10/Exiles | Found 0b10 Alert Chip 609 | -10/Exiles | Warned to stay clear of 0b10 Research branches 632 | -10/Exiles | Discovered new exit (range 14) 637 | -10/Exiles | Left Exiles lab with 0b10 Alert Chip 637 | -10/Exiles | Entered Mines 640 | -9/Mines | Discovered new exit (range 7) 654 | -9/Mines | Discovered new exit (range 9) 676 | -9/Mines | Entered Materials 676 | -8/Materials | Evolved 4 slots: Power x1, Propulsion x1, Utility x2 677 | -8/Materials | Loaded intel: 12 terminal locations 950 | -8/Materials | Lost 5 parts (1p3n1u) 1024 | -8/Materials | Lost 7 parts (3p1n1u2w) 1028 | -8/Materials | Discovered new exit (range 11) 1039 | -8/Materials | Core integrity fell below 50% 1043 | -8/Materials | Entered Factory 1043 | -7/Factory | Evolved 2 slots: Utility x1, Weapon x1 1089 | -7/Factory | Noticed a derelict Sapper rigging charges 1396 | -7/Factory | Lost 4 parts (1n1u2w) 1410 | -7/Factory | Core integrity fell below 50% 1420 | -7/Factory | Core integrity fell below 20% 1426 | -7/Factory | Destroyed by S-27 Virus with Autogun Last Messages --------------- 01165_ U-05 Engineer lays Concrete. 01166_ Acquired Hpw. Shotgun. 01167_ U-05 Engineer lays Concrete. 01168_ K-01 Serf collects debris. 01169_ U-05 Engineer lays Concrete. 01172_ K-01 Serf collects debris. 01185_ The unstable cave ceiling collapses. 01186_ K-01 Serf collects debris. 01327_ Triggered Ambush Trap. 01327_ G-47 Trooper emerges from a hatch in the floor. 01327_ S-27 Virus emerges from a hatch in the floor. 01349_ Aluminum Leg destroyed. 01350_ Imp. Shield Generator destroyed. 01356_ Critical hit (Burn: +37). 01360_ Hvy. Particle Cannon destroyed. 01413_ Cld. Airjet destroyed. 01414_ Critical hit (Burn: +37). 01423_ Med. Storage Unit destroyed. Map ----- +----------------------------------------------------+ | #????????????????????????????? | | #????????????????????????????? | | #????????????????????????????? | | #????????????????????????????? | | #########+##### #????????????????????????????? | | #?????????????# #????????????????????????????? | | #?????????????# ##???????????????????????????? | | #?????????????# # ???????????????????????????? | | #?????????????# # ??????????#???????????????? | | #?????????????# # ??????? #???????????????? | | #?????????????# # ?????? !!!#???????????????? | | #?????????????# # ""???/ !!!#???????????????? | | #?????????????# #! """" !!!#???????????????? | | #?????????????# # """" ] #???????????????? | | ??????????????# # """" #???????????????? | | ???????######## # """" ?????????????????? | | ???????? # # ???????????????????? | | ???????? # # ????????###??????????? | | ???????? """" # # ????????? ?????????? | | ??????? """" # ###/########## ????????? | | ?????? """" # g u ????????? | | ?????? """" + g u ????????? | | ????"" # s k ????????? | | ????"" """" # kgg ????????? | | ???"S """" # Y ????????? | | ???""" """" ######## @ ####### ????????? | | ?????" """" #??????# #???????? ?????????? | | ????? ???? #??????#a k #?????????? ??????????? | | ??????????#####??????#k u#?????????????????????? | | ?????????????????????# k#?????????????????????? | | ?????????????????????# #?????????????????????? | | ?????????????????????# #?????????????????????? | | ?????????????????????# #?????????????????????? | | ?????????????????????# #?????????????????????? | | ?????????????????????# #?????????????????????? | | ?????????????????????/k +?????????????????????? | | ?????????????????????# #?????????????????????? | | ?????????????????????# #?????????????????????? | | ?????????????????????# #?????????????????????? | | ?????????????????????# #?????????????????????? | | ?????????????????????# #?????????????????????? | | ?????????????????????# ??????????????????????? | | ?????????????????????# ??????????????????????? | | ??????????????????????? ??????????????????????? | | ?????????????????????????????????????????????????? | | ?????????????????????????????????????????????????? | | ?????????????????????????????????????????????????? | | ?????????????????????????????????????????????????? | | ?????????????????????????????????????????????????? | | ?????????????????????????????????????????????????? | +----------------------------------------------------+ Best States ------------- Heat Dissipation 45 Energy Generation 19 Energy Capacity 185 Matter Stores 300 Matter Capacity 300 Sight Range 16 Terrain Scan Density 10 Evasion (%) 62 Item Schematics ----------------- None Robot Schematics ------------------ None Fabricated ------------ Nothing Repaired ---------- Nothing Studied --------- None Alien Tech Used ----------------- None Achievements -------------- None Challenges ------------ None Game ------ Seed SurveybotGuidanceGriptreads Manual? 0 Play Time 00:25:28 Cumulative 17.9 hours Start 2026.01.15 @ 23:14:56 End 2026.01.16 @ 10:47:33 Sessions 3 Manual Loads 0 Difficulty Rogue Special Mode None Game No. 29 Rogue 29 Adventurer 0 Explorer 0 Win Type - Total 0 Types 0/0/0/0/0/0/0/0/0/0 Lore% 11 Gallery% 20 Achievement% 13 Wizard Run 0 Options --------- Layout 1 ASCII 0 Keyboard 1 Movement Vi Keybinds 0 Fullscreen 1 Font 24/Smallcaps Map View 50x35 Zoom Use 0% Tactical HUD 1 Map Filters NONE Filters NONE Steam 1 RUN: 59219236-f8d0-4eba-a3e0-ac8f655e4534